[Event "Late-Titled-Tuesday-Blitz-June-25-2024"]
[Site "Chess.com"]
[Date "2024.06.25"]
[Round "6"]
[White "Grossboss19"]
[Black "Kaustubh_Kodihalli"]
[Result "0-1"]
[WhiteElo "2606"]
[BlackElo "2467"]
[TimeControl "180+1"]
[EndTime "15:05:20 PDT"]
[Termination "Kaustubh_Kodihalli won by checkmate"]

1. c4 {[%clk 0:02:49.1]} 1... c6 {[%clk 0:02:59.8]} 2. Nf3 {[%clk 0:02:43.8]}
2... d5 {[%clk 0:03:00.1]} 3. g3 {[%clk 0:02:44.4]} 3... Nf6 {[%clk 0:03:00.2]}
4. Bg2 {[%clk 0:02:44.8]} 4... Bf5 {[%clk 0:03:00.2]} 5. O-O {[%clk 0:02:45]}
5... e6 {[%clk 0:03:00.4]} 6. Nh4 {[%clk 0:02:43.6]} 6... Be4 {[%clk 0:02:58.8]}
7. f3 {[%clk 0:02:42.2]} 7... Bg6 {[%clk 0:02:57.6]} 8. cxd5 {[%clk 0:02:38.8]}
8... exd5 {[%clk 0:02:56.9]} 9. d4 {[%clk 0:02:38.1]} 9... Bd6 {[%clk
0:02:52.9]} 10. Nc3 {[%clk 0:02:34.8]} 10... O-O {[%clk 0:02:52.8]} 11. Nxg6
{[%clk 0:02:33.4]} 11... hxg6 {[%clk 0:02:53.7]} 12. e4 {[%clk 0:02:33.5]} 12...
dxe4 {[%clk 0:02:53.6]} 13. fxe4 {[%clk 0:02:34.4]} 13... Bb4 {[%clk 0:02:53.4]}
14. Bg5 {[%clk 0:02:25.6]} 14... Be7 {[%clk 0:02:50.2]} 15. h4 {[%clk
0:02:15.7]} 15... Nh5 {[%clk 0:02:41.6]} 16. Bxe7 {[%clk 0:02:14]} 16... Qxe7
{[%clk 0:02:42.5]} 17. Qf3 {[%clk 0:02:13.8]} 17... Nf6 {[%clk 0:02:15.5]} 18.
Rad1 {[%clk 0:02:05.3]} 18... Na6 {[%clk 0:02:09.8]} 19. e5 {[%clk 0:01:57.8]}
19... Nd7 {[%clk 0:02:06.6]} 20. Ne4 {[%clk 0:01:57.6]} 20... c5 {[%clk
0:01:52.9]} 21. Ng5 {[%clk 0:01:27.5]} 21... cxd4 {[%clk 0:01:35.3]} 22. Qxb7
{[%clk 0:01:18.3]} 22... Nac5 {[%clk 0:01:34.7]} 23. Qc7 {[%clk 0:01:13.5]}
23... Rac8 {[%clk 0:01:31.8]} 24. Qd6 {[%clk 0:01:12.9]} 24... Qxe5 {[%clk
0:01:27.4]} 25. Rxd4 {[%clk 0:01:10.4]} 25... Qxd6 {[%clk 0:01:22.8]} 26. Rxd6
{[%clk 0:01:11.3]} 26... Nf6 {[%clk 0:01:22.9]} 27. b4 {[%clk 0:01:08.3]} 27...
Ncd7 {[%clk 0:01:08.5]} 28. Bh3 {[%clk 0:01:02.6]} 28... Rc7 {[%clk 0:01:03.8]}
29. Rfd1 {[%clk 0:00:55.3]} 29... Nb6 {[%clk 0:00:55.7]} 30. Rd8 {[%clk
0:00:53.5]} 30... Nh7 {[%clk 0:00:51.1]} 31. Ne4 {[%clk 0:00:41.1]} 31... Re7
{[%clk 0:00:29.3]} 32. Nc5 {[%clk 0:00:37.6]} 32... Nf6 {[%clk 0:00:18.2]} 33.
a4 {[%clk 0:00:34.7]} 33... Rxd8 {[%clk 0:00:16.6]} 34. Rxd8+ {[%clk 0:00:34.3]}
34... Kh7 {[%clk 0:00:17.5]} 35. a5 {[%clk 0:00:22.4]} 35... Nbd5 {[%clk
0:00:15.7]} 36. b5 {[%clk 0:00:21.5]} 36... Re2 {[%clk 0:00:11.7]} 37. Bf1
{[%clk 0:00:12]} 37... Rb2 {[%clk 0:00:09.4]} 38. Ra8 {[%clk 0:00:09]} 38... Ne3
{[%clk 0:00:08.2]} 39. Bd3 {[%clk 0:00:04.5]} 39... Nfg4 {[%clk 0:00:06.6]} 40.
Rxa7 {[%clk 0:00:02.8]} 40... Rg2+ {[%clk 0:00:05.9]} 41. Kh1 {[%clk 0:00:02.8]}
41... Nf2# {[%clk 0:00:05.9]} 0-1

[Event "Late-Titled-Tuesday-Blitz-June-25-2024"]
[Site "Chess.com"]
[Date "2024.06.25"]
[Round "6"]
[White "JavierRuizVazquez"]
[Black "guillembaches"]
[Result "0-1"]
[WhiteElo "2385"]
[BlackElo "2537"]
[TimeControl "180+1"]
[EndTime "15:05:20 PDT"]
[Termination "guillembaches won by checkmate"]

1. e4 {[%clk 0:03:00.9]} 1... d5 {[%clk 0:03:00.2]} 2. exd5 {[%clk 0:03:00.4]}
2... Qxd5 {[%clk 0:03:01.1]} 3. d4 {[%clk 0:02:59.1]} 3... Nc6 {[%clk 0:03:00]}
4. c3 {[%clk 0:02:55.8]} 4... e5 {[%clk 0:02:57.6]} 5. dxe5 {[%clk 0:02:54]}
5... Qxd1+ {[%clk 0:02:55]} 6. Kxd1 {[%clk 0:02:54.9]} 6... Nxe5 {[%clk
0:02:53]} 7. Be2 {[%clk 0:02:54.3]} 7... Bf5 {[%clk 0:02:48.6]} 8. Bf4 {[%clk
0:02:51.3]} 8... O-O-O+ {[%clk 0:02:45.4]} 9. Ke1 {[%clk 0:02:50.9]} 9... Nd3+
{[%clk 0:02:42.2]} 10. Bxd3 {[%clk 0:02:50.8]} 10... Bxd3 {[%clk 0:02:40.3]} 11.
Nf3 {[%clk 0:02:47.7]} 11... Bc5 {[%clk 0:02:27.5]} 12. Ne5 {[%clk 0:02:28.8]}
12... Nf6 {[%clk 0:02:17.2]} 13. Nd2 {[%clk 0:02:18.1]} 13... Rhe8 {[%clk
0:02:09.9]} 14. Kd1 {[%clk 0:02:07.2]} 14... Nh5 {[%clk 0:01:58.2]} 15. Nxf7
{[%clk 0:01:45.9]} 15... Nxf4 {[%clk 0:01:45.7]} 16. Nxd8 {[%clk 0:01:45.2]}
16... Kxd8 {[%clk 0:01:34.8]} 17. g3 {[%clk 0:01:41.1]} 17... Be2+ {[%clk
0:01:26.5]} 18. Kc2 {[%clk 0:01:39.5]} 18... Nd3 {[%clk 0:01:25.8]} 19. f4
{[%clk 0:01:27.4]} 19... Nf2 {[%clk 0:01:20.6]} 20. Rhe1 {[%clk 0:01:25.3]}
20... Bd3+ {[%clk 0:01:08.8]} 21. Kb3 {[%clk 0:01:24.2]} 21... Rf8 {[%clk
0:00:53.3]} 22. Nf3 {[%clk 0:01:17.1]} 22... b5 {[%clk 0:00:37.9]} 23. Ne5
{[%clk 0:01:14.3]} 23... Kc8 {[%clk 0:00:20.5]} 24. a4 {[%clk 0:01:09.1]} 24...
Kb7 {[%clk 0:00:14.3]} 25. Nd7 {[%clk 0:00:57.2]} 25... Rf5 {[%clk 0:00:11]} 26.
axb5 {[%clk 0:00:52.4]} 26... Bxb5 {[%clk 0:00:08.7]} 27. Ra5 {[%clk 0:00:46.3]}
27... Bxd7 {[%clk 0:00:07.6]} 28. Re2 {[%clk 0:00:42.7]} 28... Nd3 {[%clk
0:00:06.3]} 29. Rd2 {[%clk 0:00:41]} 29... Rd5 {[%clk 0:00:06.3]} 30. Kc2 {[%clk
0:00:38.4]} 30... Bf5 {[%clk 0:00:05.1]} 31. Kb3 {[%clk 0:00:39]} 31... Nc1+
{[%clk 0:00:04.2]} 32. Kc4 {[%clk 0:00:37.4]} 32... Rxd2 {[%clk 0:00:04.2]} 33.
Rxc5 {[%clk 0:00:38.3]} 33... Be6+ {[%clk 0:00:04.1]} 34. Kb4 {[%clk 0:00:38.1]}
34... Nd3+ {[%clk 0:00:04.7]} 35. Kb5 {[%clk 0:00:38.3]} 35... Nxc5 {[%clk
0:00:05.4]} 36. b4 {[%clk 0:00:39.2]} 36... Rb2 {[%clk 0:00:05.7]} 37. c4 {[%clk
0:00:40.1]} 37... a6+ {[%clk 0:00:05.6]} 38. Kxc5 {[%clk 0:00:40.9]} 38... Rxh2
{[%clk 0:00:05.2]} 39. b5 {[%clk 0:00:40.2]} 39... Rh3 {[%clk 0:00:05.6]} 40.
Kb4 {[%clk 0:00:39.8]} 40... axb5 {[%clk 0:00:05.3]} 41. f5 {[%clk 0:00:40.5]}
41... Bxf5 {[%clk 0:00:05]} 42. Kxb5 {[%clk 0:00:40.2]} 42... Bd7+ {[%clk
0:00:05.5]} 43. Kb4 {[%clk 0:00:40.5]} 43... Rxg3 {[%clk 0:00:06]} 44. c5 {[%clk
0:00:40.1]} 44... Rg5 {[%clk 0:00:06.4]} 45. c6+ {[%clk 0:00:39.3]} 45... Bxc6
{[%clk 0:00:06]} 46. Kc4 {[%clk 0:00:40.2]} 46... Rd5 {[%clk 0:00:06.4]} 47. Kb4
{[%clk 0:00:40.7]} 47... Kc8 {[%clk 0:00:06.9]} 48. Kc4 {[%clk 0:00:41.4]} 48...
Kd7 {[%clk 0:00:07.4]} 49. Kb4 {[%clk 0:00:42.3]} 49... Ke8 {[%clk 0:00:07.9]}
50. Kc4 {[%clk 0:00:43.2]} 50... h6 {[%clk 0:00:08.3]} 51. Kb4 {[%clk
0:00:44.1]} 51... g6 {[%clk 0:00:08.8]} 52. Kc4 {[%clk 0:00:45]} 52... h5 {[%clk
0:00:09.4]} 53. Kb4 {[%clk 0:00:45.9]} 53... g5 {[%clk 0:00:09.9]} 54. Kc4
{[%clk 0:00:46.8]} 54... Kd7 {[%clk 0:00:09.6]} 55. Kb4 {[%clk 0:00:47.7]} 55...
Kd6 {[%clk 0:00:10.1]} 56. Kc4 {[%clk 0:00:48.5]} 56... Bd7 {[%clk 0:00:10.6]}
57. Kb4 {[%clk 0:00:49.4]} 57... c6 {[%clk 0:00:11.2]} 58. Kc4 {[%clk
0:00:50.3]} 58... Be6 {[%clk 0:00:11.7]} 59. Kb4 {[%clk 0:00:51.2]} 59... g4
{[%clk 0:00:11.7]} 60. Ka4 {[%clk 0:00:52.1]} 60... h4 {[%clk 0:00:12]} 61. Kb4
{[%clk 0:00:53]} 61... h3 {[%clk 0:00:11.6]} 62. Ka4 {[%clk 0:00:53.9]} 62... h2
{[%clk 0:00:11.9]} 63. Kb4 {[%clk 0:00:54.8]} 63... h1=Q {[%clk 0:00:12.1]} 64.
Ka4 {[%clk 0:00:55.7]} 64... Qe4+ {[%clk 0:00:12.1]} 65. Ka3 {[%clk 0:00:55.5]}
65... Rd3+ {[%clk 0:00:12.1]} 66. Kb2 {[%clk 0:00:55.9]} 66... Qe2+ {[%clk
0:00:12.3]} 67. Ka1 {[%clk 0:00:56.4]} 67... Rd1# {[%clk 0:00:12.5]} 0-1

[Event "Late-Titled-Tuesday-Blitz-June-25-2024"]
[Site "Chess.com"]
[Date "2024.06.25"]
[Round "6"]
[White "IMRosen"]
[Black "DmitriiZakurdaev"]
[Result "1/2-1/2"]
[WhiteElo "2721"]
[BlackElo "2427"]
[TimeControl "180+1"]
[EndTime "15:05:29 PDT"]
[Termination "Game drawn by stalemate"]

1. e4 {[%clk 0:03:00.9]} 1... c6 {[%clk 0:03:00.3]} 2. d4 {[%clk 0:02:57.3]}
2... d5 {[%clk 0:03:01.2]} 3. exd5 {[%clk 0:02:53.6]} 3... cxd5 {[%clk
0:03:02.1]} 4. c3 {[%clk 0:02:53.5]} 4... Nc6 {[%clk 0:03:02.3]} 5. Bd3 {[%clk
0:02:53.5]} 5... Nf6 {[%clk 0:03:02.5]} 6. Bf4 {[%clk 0:02:51.5]} 6... Bg4
{[%clk 0:03:01.2]} 7. Nf3 {[%clk 0:02:49.4]} 7... e6 {[%clk 0:03:00.7]} 8. O-O
{[%clk 0:02:49.6]} 8... Bd6 {[%clk 0:03:00.8]} 9. Bxd6 {[%clk 0:02:50.1]} 9...
Qxd6 {[%clk 0:03:01.5]} 10. Nbd2 {[%clk 0:02:49.9]} 10... O-O {[%clk 0:03:01.6]}
11. Qe1 {[%clk 0:02:50.7]} 11... Qc7 {[%clk 0:02:57.5]} 12. Ne5 {[%clk
0:02:48.4]} 12... Bh5 {[%clk 0:02:57.3]} 13. f4 {[%clk 0:02:46.4]} 13... Bg6
{[%clk 0:02:55.5]} 14. Bxg6 {[%clk 0:02:43.9]} 14... hxg6 {[%clk 0:02:56.4]} 15.
Qh4 {[%clk 0:02:42.3]} 15... Rfc8 {[%clk 0:02:42.7]} 16. Rf3 {[%clk 0:02:38]}
16... Qe7 {[%clk 0:02:35.4]} 17. g4 {[%clk 0:01:47.6]} 17... Ne4 {[%clk
0:02:13.1]} 18. g5 {[%clk 0:01:40.8]} 18... Nxe5 {[%clk 0:01:57.2]} 19. Rh3
{[%clk 0:01:05.8]} 19... f5 {[%clk 0:01:54.9]} 20. gxf6 {[%clk 0:00:48.2]} 20...
Qxf6 {[%clk 0:01:47.9]} 21. Qxf6 {[%clk 0:00:45.6]} 21... gxf6 {[%clk
0:01:14.9]} 22. Nxe4 {[%clk 0:00:44.6]} 22... dxe4 {[%clk 0:01:14.9]} 23. fxe5
{[%clk 0:00:29.9]} 23... f5 {[%clk 0:01:15.2]} 24. Kf2 {[%clk 0:00:27.7]} 24...
Kg7 {[%clk 0:01:11.6]} 25. Rg3 {[%clk 0:00:25.7]} 25... Rh8 {[%clk 0:01:10.9]}
26. h3 {[%clk 0:00:19.8]} 26... Rh6 {[%clk 0:01:02.5]} 27. Rag1 {[%clk
0:00:20.3]} 27... Rah8 {[%clk 0:01:02.1]} 28. a4 {[%clk 0:00:15]} 28... Kf7
{[%clk 0:01:01.8]} 29. Ke2 {[%clk 0:00:12.7]} 29... R8h7 {[%clk 0:00:40.8]} 30.
Kf2 {[%clk 0:00:10.4]} 30... Rxh3 {[%clk 0:00:37]} 31. Rxg6 {[%clk 0:00:07.9]}
31... Rh2+ {[%clk 0:00:24]} 32. R6g2 {[%clk 0:00:07.7]} 32... f4 {[%clk
0:00:19.8]} 33. a5 {[%clk 0:00:04.8]} 33... f3 {[%clk 0:00:17.6]} 34. Rxh2
{[%clk 0:00:03.7]} 34... Rxh2+ {[%clk 0:00:18.5]} 35. Ke3 {[%clk 0:00:04.5]}
35... Re2+ {[%clk 0:00:18.7]} 36. Kf4 {[%clk 0:00:05.1]} 36... f2 {[%clk
0:00:18.8]} 37. Rf1 {[%clk 0:00:01.5]} 37... e3 {[%clk 0:00:19]} 38. Kf3 {[%clk
0:00:02.2]} 38... Re1 {[%clk 0:00:19.2]} 39. Kg2 {[%clk 0:00:03]} 39... Ke7
{[%clk 0:00:14.6]} 40. c4 {[%clk 0:00:02.7]} 40... e2 {[%clk 0:00:13.9]} 41.
Rxf2 {[%clk 0:00:01]} 41... Rg1+ {[%clk 0:00:14.5]} 42. Kxg1 {[%clk 0:00:01.2]}
42... e1=Q+ {[%clk 0:00:15.2]} 43. Kg2 {[%clk 0:00:02]} 43... Qe4+ {[%clk
0:00:15]} 44. Kh2 {[%clk 0:00:01.7]} 44... Qxd4 {[%clk 0:00:15.6]} 45. Rg2
{[%clk 0:00:02.4]} 45... Qxe5+ {[%clk 0:00:16]} 46. Rg3 {[%clk 0:00:01.9]} 46...
Qxa5 {[%clk 0:00:16.8]} 47. c5 {[%clk 0:00:01.8]} 47... Qxc5 {[%clk 0:00:16.7]}
48. b4 {[%clk 0:00:02.7]} 48... Qxb4 {[%clk 0:00:17]} 49. Kg2 {[%clk 0:00:03.6]}
49... Qf4 {[%clk 0:00:15]} 50. Kh2 {[%clk 0:00:04]} 50... Qxg3+ {[%clk
0:00:15.2]} 51. Kh1 {[%clk 0:00:04.2]} 51... Kd6 {[%clk 0:00:16.1]} 1/2-1/2

[Event "Late-Titled-Tuesday-Blitz-June-25-2024"]
[Site "Chess.com"]
[Date "2024.06.25"]
[Round "6"]
[White "Zurability"]
[Black "Bugcrusher"]
[Result "1-0"]
[WhiteElo "2772"]
[BlackElo "2481"]
[TimeControl "180+1"]
[EndTime "15:05:31 PDT"]
[Termination "Zurability won by resignation"]

1. e4 {[%clk 0:03:00.9]} 1... e6 {[%clk 0:02:58.6]} 2. d3 {[%clk 0:02:59.8]}
2... d5 {[%clk 0:02:57.9]} 3. Nd2 {[%clk 0:03:00.7]} 3... Nf6 {[%clk 0:02:57.7]}
4. Ngf3 {[%clk 0:02:59.2]} 4... Nc6 {[%clk 0:02:56.8]} 5. g3 {[%clk 0:02:57.2]}
5... dxe4 {[%clk 0:02:55.9]} 6. dxe4 {[%clk 0:02:56.9]} 6... e5 {[%clk
0:02:56.1]} 7. Bg2 {[%clk 0:02:57]} 7... Bc5 {[%clk 0:02:54.3]} 8. O-O {[%clk
0:02:57.1]} 8... O-O {[%clk 0:02:44.5]} 9. c3 {[%clk 0:02:56.9]} 9... a5 {[%clk
0:02:43.8]} 10. Qe2 {[%clk 0:02:55.1]} 10... b6 {[%clk 0:02:42.8]} 11. Rd1
{[%clk 0:02:54]} 11... Ba6 {[%clk 0:02:42.3]} 12. c4 {[%clk 0:02:38.7]} 12...
Qe7 {[%clk 0:02:39.1]} 13. Nf1 {[%clk 0:02:35.1]} 13... Rad8 {[%clk 0:02:36.9]}
14. Bg5 {[%clk 0:02:23.1]} 14... h6 {[%clk 0:02:35.4]} 15. Bxf6 {[%clk
0:02:21.7]} 15... Qxf6 {[%clk 0:02:35.5]} 16. Ne3 {[%clk 0:02:22.6]} 16... Bxe3
{[%clk 0:02:33.3]} 17. Qxe3 {[%clk 0:02:20.1]} 17... Bxc4 {[%clk 0:02:17.7]} 18.
b3 {[%clk 0:02:12.7]} 18... Ba6 {[%clk 0:02:15.7]} 19. Rd5 {[%clk 0:02:12.4]}
19... Nd4 {[%clk 0:02:09.1]} 20. Rd1 {[%clk 0:01:37.5]} 20... Nxf3+ {[%clk
0:02:04.4]} 21. Bxf3 {[%clk 0:01:35.5]} 21... Bb7 {[%clk 0:02:03.8]} 22. Rd7
{[%clk 0:01:26]} 22... Rxd7 {[%clk 0:01:55.8]} 23. Rxd7 {[%clk 0:01:26.9]} 23...
Rc8 {[%clk 0:01:39.1]} 24. Kg2 {[%clk 0:01:24.7]} 24... Bc6 {[%clk 0:01:38.2]}
25. Rd2 {[%clk 0:01:23.1]} 25... Rd8 {[%clk 0:01:38]} 26. Rc2 {[%clk 0:01:21.6]}
26... Rd4 {[%clk 0:01:27.9]} 27. Qc3 {[%clk 0:00:57.6]} 27... Bxe4 {[%clk
0:01:24.9]} 28. Bxe4 {[%clk 0:00:57.7]} 28... Rxe4 {[%clk 0:01:25.1]} 29. Qxc7
{[%clk 0:00:58.4]} 29... Rd4 {[%clk 0:01:20.3]} 30. Rc6 {[%clk 0:00:54.7]} 30...
Qf5 {[%clk 0:01:14.1]} 31. Qc8+ {[%clk 0:00:39.7]} 31... Qxc8 {[%clk 0:01:12.3]}
32. Rxc8+ {[%clk 0:00:40.6]} 32... Kh7 {[%clk 0:01:12.5]} 33. Rc6 {[%clk
0:00:40.3]} 33... Rd2 {[%clk 0:01:08.9]} 34. Rxb6 {[%clk 0:00:40]} 34... Rxa2
{[%clk 0:01:06.9]} 35. h4 {[%clk 0:00:32.7]} 35... h5 {[%clk 0:01:04.5]} 36. b4
{[%clk 0:00:31.8]} 36... a4 {[%clk 0:01:02.2]} 37. Ra6 {[%clk 0:00:28.5]} 37...
e4 {[%clk 0:01:00.6]} 38. Kg1 {[%clk 0:00:26.8]} 38... f6 {[%clk 0:00:53.3]} 39.
b5 {[%clk 0:00:26.1]} 39... Kg6 {[%clk 0:00:50.3]} 40. b6 {[%clk 0:00:26.5]}
40... Kf5 {[%clk 0:00:49.3]} 41. Ra5+ {[%clk 0:00:11.9]} 41... Kg6 {[%clk
0:00:35.1]} 42. Rb5 {[%clk 0:00:11.9]} 42... a3 {[%clk 0:00:16.4]} 43. b7 {[%clk
0:00:10.8]} 43... Ra1+ {[%clk 0:00:15.9]} 44. Kg2 {[%clk 0:00:10]} 44... a2
{[%clk 0:00:16.2]} 45. b8=Q {[%clk 0:00:09.9]} 45... Rg1+ {[%clk 0:00:15.6]} 46.
Kxg1 {[%clk 0:00:10.1]} 46... a1=Q+ {[%clk 0:00:15.8]} 47. Kg2 {[%clk
0:00:10.8]} 47... Qd1 {[%clk 0:00:14.2]} 48. Qe8+ {[%clk 0:00:10.2]} 48... Kh6
{[%clk 0:00:11.6]} 49. Qxe4 {[%clk 0:00:10.1]} 1-0

[Event "Late-Titled-Tuesday-Blitz-June-25-2024"]
[Site "Chess.com"]
[Date "2024.06.25"]
[Round "6"]
[White "Leebit02"]
[Black "alexrustemov"]
[Result "0-1"]
[WhiteElo "2585"]
[BlackElo "2825"]
[TimeControl "180+1"]
[EndTime "15:05:31 PDT"]
[Termination "alexrustemov won by resignation"]

1. e4 {[%clk 0:02:55.5]} 1... e6 {[%clk 0:02:57.7]} 2. d4 {[%clk 0:02:55.3]}
2... d5 {[%clk 0:02:58]} 3. e5 {[%clk 0:02:55.9]} 3... c5 {[%clk 0:02:57.5]} 4.
c3 {[%clk 0:02:56.4]} 4... Qb6 {[%clk 0:02:57.8]} 5. Nf3 {[%clk 0:02:54.8]} 5...
Bd7 {[%clk 0:02:58.1]} 6. Be2 {[%clk 0:02:46]} 6... cxd4 {[%clk 0:02:54.8]} 7.
cxd4 {[%clk 0:02:43.4]} 7... Bb5 {[%clk 0:02:54.9]} 8. O-O {[%clk 0:02:27.1]}
8... Bxe2 {[%clk 0:02:54]} 9. Qxe2 {[%clk 0:02:27.6]} 9... Qa6 {[%clk
0:02:54.7]} 10. Qe3 {[%clk 0:02:24]} 10... Ne7 {[%clk 0:02:51.2]} 11. Nc3 {[%clk
0:02:23]} 11... Nbc6 {[%clk 0:02:48.5]} 12. a3 {[%clk 0:02:16.4]} 12... Nf5
{[%clk 0:02:47.6]} 13. Qf4 {[%clk 0:02:16]} 13... Qd3 {[%clk 0:02:14.3]} 14. Rd1
{[%clk 0:02:06.9]} 14... Qc2 {[%clk 0:02:11.1]} 15. Bd2 {[%clk 0:01:36.1]} 15...
a6 {[%clk 0:02:04.7]} 16. b4 {[%clk 0:01:31.3]} 16... Nfe7 {[%clk 0:01:59.2]}
17. b5 {[%clk 0:01:29.6]} 17... Na5 {[%clk 0:01:54.7]} 18. Rac1 {[%clk
0:01:23.2]} 18... Qf5 {[%clk 0:01:53.4]} 19. Qg3 {[%clk 0:01:20.6]} 19... Nc4
{[%clk 0:01:48.1]} 20. Rb1 {[%clk 0:01:20.8]} 20... a5 {[%clk 0:01:28.9]} 21. b6
{[%clk 0:01:15]} 21... Nc6 {[%clk 0:01:19.8]} 22. Nb5 {[%clk 0:01:14.2]} 22...
Rc8 {[%clk 0:01:12.4]} 23. Nc7+ {[%clk 0:01:00.4]} 23... Kd7 {[%clk 0:01:12.3]}
24. Rdc1 {[%clk 0:00:53.2]} 24... Be7 {[%clk 0:00:56.4]} 25. Bc3 {[%clk
0:00:40.2]} 25... Nxa3 {[%clk 0:00:50.7]} 26. Ra1 {[%clk 0:00:38.8]} 26... Nc4
{[%clk 0:00:51.2]} 27. Ne1 {[%clk 0:00:33.6]} 27... g5 {[%clk 0:00:47.1]} 28.
Rab1 {[%clk 0:00:31.1]} 28... h5 {[%clk 0:00:43.4]} 29. f3 {[%clk 0:00:26.6]}
29... g4 {[%clk 0:00:42]} 30. Qf2 {[%clk 0:00:18.8]} 30... Rcg8 {[%clk
0:00:40.1]} 31. f4 {[%clk 0:00:18]} 31... h4 {[%clk 0:00:36]} 32. g3 {[%clk
0:00:17.3]} 32... h3 {[%clk 0:00:35.7]} 33. Nc2 {[%clk 0:00:15.8]} 33... Qd3
{[%clk 0:00:30.9]} 34. Ne1 {[%clk 0:00:15.6]} 34... Qe4 {[%clk 0:00:30.6]} 35.
Rc2 {[%clk 0:00:11.5]} 35... a4 {[%clk 0:00:28.1]} 36. Rbc1 {[%clk 0:00:11.7]}
36... a3 {[%clk 0:00:27.7]} 37. Ba1 {[%clk 0:00:11.5]} 37... Bb4 {[%clk
0:00:25.9]} 38. Re2 {[%clk 0:00:09.7]} 38... Qf5 {[%clk 0:00:25.6]} 39. Rxc4
{[%clk 0:00:09.3]} 39... dxc4 {[%clk 0:00:25.5]} 40. d5 {[%clk 0:00:09.9]} 40...
exd5 {[%clk 0:00:25.7]} 41. Nxd5 {[%clk 0:00:10.4]} 41... Qb1 {[%clk 0:00:18.1]}
42. Nf6+ {[%clk 0:00:08.9]} 42... Kc8 {[%clk 0:00:18.3]} 43. Nxg8 {[%clk
0:00:08.2]} 43... Rxg8 {[%clk 0:00:18.3]} 44. f5 {[%clk 0:00:08.5]} 44... Qxa1
{[%clk 0:00:17.4]} 45. e6 {[%clk 0:00:08.5]} 45... fxe6 {[%clk 0:00:15.7]} 46.
f6 {[%clk 0:00:09.1]} 46... Qd4 {[%clk 0:00:14.9]} 47. f7 {[%clk 0:00:07.7]}
47... Rf8 {[%clk 0:00:14.5]} 48. Re3 {[%clk 0:00:06.8]} 48... Bc5 {[%clk
0:00:14.1]} 0-1

[Event "Late-Titled-Tuesday-Blitz-June-25-2024"]
[Site "Chess.com"]
[Date "2024.06.25"]
[Round "6"]
[White "Mops_2004"]
[Black "Grischuk"]
[Result "1/2-1/2"]
[WhiteElo "2800"]
[BlackElo "3114"]
[TimeControl "180+1"]
[EndTime "15:05:32 PDT"]
[Termination "Game drawn by repetition"]

1. e4 {[%clk 0:03:00.9]} 1... e5 {[%clk 0:03:00.1]} 2. Nf3 {[%clk 0:03:00.3]}
2... Nc6 {[%clk 0:03:00.7]} 3. Bc4 {[%clk 0:03:00.3]} 3... Bc5 {[%clk
0:03:00.3]} 4. d3 {[%clk 0:03:00.6]} 4... Nf6 {[%clk 0:03:00.4]} 5. Nc3 {[%clk
0:03:00.8]} 5... h6 {[%clk 0:02:52]} 6. h3 {[%clk 0:03:00.4]} 6... d6 {[%clk
0:02:51.4]} 7. Na4 {[%clk 0:02:59.8]} 7... Bb6 {[%clk 0:02:51.7]} 8. a3 {[%clk
0:02:59.9]} 8... O-O {[%clk 0:02:48.2]} 9. O-O {[%clk 0:02:59.7]} 9... Re8
{[%clk 0:02:48.5]} 10. Re1 {[%clk 0:02:46.6]} 10... Be6 {[%clk 0:02:48.1]} 11.
Bxe6 {[%clk 0:02:46.6]} 11... Rxe6 {[%clk 0:02:49]} 12. b4 {[%clk 0:02:34.3]}
12... Nd4 {[%clk 0:02:29.9]} 13. Nxd4 {[%clk 0:02:26.7]} 13... Bxd4 {[%clk
0:02:30.8]} 14. c3 {[%clk 0:02:26.9]} 14... Bb6 {[%clk 0:02:31.5]} 15. Ra2
{[%clk 0:02:21.6]} 15... Qd7 {[%clk 0:02:21]} 16. Qb3 {[%clk 0:02:10.8]} 16...
Nh5 {[%clk 0:02:09.1]} 17. Qd1 {[%clk 0:02:01.8]} 17... Nf6 {[%clk 0:02:08.7]}
18. Nxb6 {[%clk 0:01:48.4]} 18... axb6 {[%clk 0:02:09.6]} 19. a4 {[%clk
0:01:48.8]} 19... d5 {[%clk 0:02:04]} 20. Qc2 {[%clk 0:01:17.4]} 20... c5 {[%clk
0:01:38.1]} 21. b5 {[%clk 0:00:59.4]} 21... Rd8 {[%clk 0:01:24.2]} 22. Be3
{[%clk 0:00:49.1]} 22... dxe4 {[%clk 0:01:10.9]} 23. dxe4 {[%clk 0:00:49.3]}
23... Qd3 {[%clk 0:01:11.5]} 24. f3 {[%clk 0:00:46.7]} 24... Qc4 {[%clk
0:01:06.4]} 25. Ra3 {[%clk 0:00:36]} 25... Nh5 {[%clk 0:00:42.2]} 26. Qb3 {[%clk
0:00:32.6]} 26... Qxb3 {[%clk 0:00:36.9]} 27. Rxb3 {[%clk 0:00:32.9]} 27... Nf4
{[%clk 0:00:29.8]} 28. Ra1 {[%clk 0:00:09.2]} 28... Rd3 {[%clk 0:00:25.6]} 29.
Kf2 {[%clk 0:00:08.9]} 29... Rg6 {[%clk 0:00:23]} 30. Bxf4 {[%clk 0:00:08.7]}
30... exf4 {[%clk 0:00:23.9]} 31. Ra2 {[%clk 0:00:08.5]} 31... Rgd6 {[%clk
0:00:16.8]} 32. Ke2 {[%clk 0:00:08.2]} 32... Re3+ {[%clk 0:00:16.1]} 33. Kf2
{[%clk 0:00:08.2]} 33... Rdd3 {[%clk 0:00:15.2]} 34. Rc2 {[%clk 0:00:03.6]}
34... g5 {[%clk 0:00:13.8]} 35. Ra3 {[%clk 0:00:03.9]} 35... Kg7 {[%clk
0:00:11.5]} 36. a5 {[%clk 0:00:04.4]} 36... bxa5 {[%clk 0:00:08.6]} 37. Rxa5
{[%clk 0:00:05.3]} 37... Rxc3 {[%clk 0:00:04.8]} 38. Rxc3 {[%clk 0:00:05.7]}
38... Rxc3 {[%clk 0:00:05.7]} 39. Ra7 {[%clk 0:00:06.1]} 39... Rc2+ {[%clk
0:00:05.6]} 40. Kf1 {[%clk 0:00:06.1]} 40... b6 {[%clk 0:00:04.4]} 41. Rb7
{[%clk 0:00:05.8]} 41... Rb2 {[%clk 0:00:04.2]} 42. Rxb6 {[%clk 0:00:06]} 42...
c4 {[%clk 0:00:04.2]} 43. Rc6 {[%clk 0:00:06.5]} 43... Rxb5 {[%clk 0:00:03.7]}
44. Rxc4 {[%clk 0:00:07.1]} 44... Rb1+ {[%clk 0:00:04.3]} 45. Kf2 {[%clk
0:00:06.9]} 45... Rb2+ {[%clk 0:00:05.2]} 46. Kf1 {[%clk 0:00:07.3]} 46... Rb1+
{[%clk 0:00:04.7]} 47. Kf2 {[%clk 0:00:07.7]} 47... Rb2+ {[%clk 0:00:05.6]} 48.
Kf1 {[%clk 0:00:08.3]} 48... Rb1+ {[%clk 0:00:05.4]} 1/2-1/2